bitfinex/quotes_BTCUSD_20241003
["timestamp","ask_amount","ask_price","bid_price","bid_amount"]
[1727919243627,0.75679929,61273.0,61272.0,0.001636]
[1727919244094,0.75679929,61273.0,61265.0,0.24516414]
[1727919244095,0.263222,61266.0,61265.0,0.24516414]
[1727919244344,0.48422259,61266.0,61265.0,0.24516414]
[1727919244789,0.48422259,61266.0,61251.0,0.03272]
[1727919244790,0.157533,61257.0,61251.0,0.03272]
[1727919245014,0.32961837,61257.0,61251.0,0.03272]
[1727919245220,0.163259,61252.0,61251.0,0.03272]
[1727919247185,0.163259,61252.0,61251.0,0.04572]
[1727919248116,0.18885536,61252.0,61251.0,0.05872]
[1727919248373,0.02559636,61252.0,61251.0,0.49936737]
[1727919248578,0.326443,61267.0,61262.0,0.1794]
[1727919248787,0.163227,61264.0,61263.0,0.03272]
[1727919249002,0.163227,61264.0,61263.0,0.0702558]
[1727919250329,0.163227,61264.0,61263.0,0.0792558]
[1727919250553,0.025591,61266.0,61263.0,0.0792558]
[1727919250771,0.025591,61266.0,61265.0,0.03272]
[1727919250989,0.025591,61266.0,61265.0,0.09123278]
[1727919251442,0.188813,61266.0,61265.0,0.09123278]
[1727919252174,0.188813,61266.0,61265.0,0.11392]
[1727919252596,0.188813,61266.0,61265.0,0.12592]
[1727919252804,0.188813,61266.0,61265.0,0.11392]
[1727919253026,0.188813,61266.0,61265.0,0.12492]
[1727919253247,0.188813,61266.0,61265.0,0.13792]
[1727919253468,0.188813,61266.0,61265.0,0.22782639]
[1727919253705,0.025591,61266.0,61265.0,0.23982639]
[1727919253936,0.025591,61266.0,61265.0,0.22682639]
[1727919254153,0.188813,61266.0,61265.0,0.23882639]
[1727919254833,0.163222,61266.0,61265.0,0.23882639]
[1727919261406,0.02558963,61266.0,61265.0,0.23882639]
[1727919261614,0.02558963,61266.0,61265.0,0.52505139]
[1727919261884,0.02558963,61266.0,61265.0,0.52305139]
[1727919263570,0.02558963,61266.0,61265.0,0.54235119]
[1727919263999,0.02558963,61266.0,61265.0,0.7055379]
[1727919264234,0.02558963,61266.0,61265.0,0.7075379]
[1727919264451,0.000818,61273.0,61267.0,0.03272]
[1727919264683,0.000818,61273.0,61272.0,0.218926]
[1727919265142,0.000818,61273.0,61272.0,0.03272]
[1727919265355,0.000818,61273.0,61272.0,0.195926]
[1727919266010,0.000818,61273.0,61272.0,0.206926]
[1727919267212,0.000818,61273.0,61272.0,0.413426]
[1727919267419,0.000818,61273.0,61272.0,0.57122684]
[1727919267861,0.000818,61273.0,61272.0,0.74331221]
[1727919268300,0.000818,61273.0,61272.0,0.76254567]
[1727919268524,0.000818,61273.0,61272.0,0.76454567]
[1727919268865,0.000818,61273.0,61272.0,0.90849892]
[1727919269307,0.000818,61273.0,61272.0,0.92770106]
[1727919269516,0.000818,61273.0,61272.0,0.90849892]
[1727919269974,0.000818,61273.0,61272.0,0.7555919]
[1727919270182,0.000818,61273.0,61272.0,0.73641355]
[1727919271626,0.000818,61273.0,61272.0,0.74073082]
[1727919275130,0.000818,61273.0,61272.0,0.73641355]
[1727919275373,0.000818,61273.0,61272.0,0.73441355]
[1727919276412,0.000818,61273.0,61272.0,0.29452084]
[1727919276641,0.000818,61273.0,61272.0,0.299926]
[1727919276845,0.000818,61273.0,61272.0,0.288926]
[1727919277052,0.000818,61273.0,61272.0,0.300926]
[1727919277511,0.000818,61273.0,61272.0,0.289926]
[1727919277714,0.000818,61273.0,61272.0,0.277926]
[1727919277924,0.000818,61273.0,61272.0,0.42823327]
[1727919278131,0.000818,61273.0,61272.0,0.46223327]
[1727919279837,0.000818,61273.0,61272.0,0.45123327]
[1727919280271,0.000818,61273.0,61272.0,0.46323327]
[1727919280664,0.000818,61273.0,61272.0,0.43923327]
[1727919281102,0.000818,61273.0,61272.0,0.46723327]
[1727919286576,0.000818,61273.0,61272.0,0.48637774]
[1727919291547,0.000818,61273.0,61272.0,0.57997774]
[1727919291770,0.000818,61273.0,61272.0,0.61066082]
[1727919292405,0.000818,61273.0,61272.0,0.58266082]
[1727919292914,0.000818,61273.0,61272.0,0.59666082]
[1727919293346,0.000818,61273.0,61272.0,0.58266082]
[1727919293583,0.000818,61273.0,61272.0,0.59666082]
[1727919293793,0.000818,61273.0,61272.0,0.61066082]
[1727919293998,0.000818,61273.0,61272.0,0.59666082]
[1727919294434,0.000818,61273.0,61272.0,0.61066082]
[1727919294660,0.000818,61273.0,61272.0,0.59666082]
[1727919295136,0.000818,61273.0,61272.0,0.56083327]
[1727919295378,0.000818,61273.0,61272.0,0.59674569]
[1727919295617,0.000818,61273.0,61272.0,0.61074569]
[1727919296103,0.000818,61273.0,61272.0,0.33093969]
[1727919296318,0.000818,61273.0,61272.0,0.16191708]
[1727919296798,0.000818,61273.0,61272.0,0.32512308]
[1727919297474,0.000818,61273.0,61272.0,0.32513843]
[1727919297735,0.000818,61273.0,61272.0,0.12921243]
[1727919297979,0.000818,61273.0,61272.0,0.06073]
[1727919297980,0.164022,61273.0,61272.0,0.06073]
[1727919298214,0.164022,61273.0,61272.0,0.12521619]
[1727919298702,0.164022,61273.0,61272.0,0.11121619]
[1727919298934,0.164022,61273.0,61272.0,0.11021619]
[1727919299131,0.164022,61273.0,61272.0,0.12321619]
[1727919299415,0.164022,61273.0,61272.0,0.11021619]
[1727919300355,0.164022,61273.0,61272.0,0.12221619]
[1727919300798,0.164022,61273.0,61272.0,0.10921619]
[1727919301236,0.164022,61273.0,61272.0,0.12121619]
[1727919302289,0.164022,61273.0,61272.0,0.05673]
[1727919304309,0.164022,61273.0,61272.0,0.024]
[1727919304512,0.18961179,61273.0,61272.0,0.024]
[1727919304933,0.26299726,61273.0,61272.0,0.024]
[1727919305141,0.163227,61264.0,61263.0,0.001636]
[1727919305373,0.163227,61264.0,61263.0,0.02631601]
[1727919305964,0.18881805,61264.0,61263.0,0.001636]
[1727919307475,0.36341805,61264.0,61263.0,0.006636]
[1727919307687,0.337827,61264.0,61263.0,0.009636]
[1727919308402,0.337827,61264.0,61263.0,0.006636]
[1727919308609,0.337827,61264.0,61263.0,0.007636]
[1727919309262,0.437827,61264.0,61263.0,0.002636]
[1727919309771,0.437827,61264.0,61263.0,0.006636]
[1727919310447,0.437827,61264.0,61263.0,0.002636]
[1727919310660,0.46342131,61264.0,61263.0,0.004636]
[1727919313107,0.46342131,61264.0,61257.0,0.001636]
[1727919313108,0.60772837,61258.0,61257.0,0.001636]
[1727919313317,0.60972837,61258.0,61257.0,0.001636]
[1727919313740,0.353262,61251.0,61250.0,0.001636]
[1727919314010,0.60044737,61251.0,61250.0,0.001636]
[1727919314347,0.72599351,61251.0,61250.0,0.001636]
[1727919314510,0.72599351,61251.0,61238.0,0.001636]
[1727919314511,0.43537137,61242.0,61240.0,0.24516414]
[1727919315357,0.43537137,61242.0,61238.0,0.001636]
[1727919316613,0.46097514,61242.0,61238.0,0.001636]
[1727919316875,0.44037137,61242.0,61238.0,0.001636]
[1727919317564,0.43537137,61242.0,61238.0,0.001636]
[1727919318011,0.163286,61242.0,61240.0,0.0752]
[1727919318272,0.167286,61242.0,61240.0,0.0752]
[1727919318497,0.163286,61242.0,61241.0,0.0292497]
[1727919318727,0.167286,61242.0,61241.0,0.0292497]
[1727919318938,0.171286,61242.0,61241.0,0.0292497]
[1727919319358,0.171286,61242.0,61241.0,0.001636]
[1727919319576,0.19688712,61242.0,61241.0,0.001636]
[1727919319992,0.18888712,61242.0,61241.0,0.001636]
[1727919320417,0.19088712,61242.0,61241.0,0.008636]
[1727919320863,0.19088712,61242.0,61241.0,0.0206198]
[1727919321281,0.02760112,61242.0,61241.0,0.0206198]
[1727919321508,0.19088712,61242.0,61241.0,0.0533498]
[1727919322386,0.18988712,61242.0,61241.0,0.0533498]
[1727919322613,0.19088712,61242.0,61241.0,0.0633498]
[1727919322836,0.19088712,61242.0,61241.0,0.051366]
[1727919323065,0.19088712,61242.0,61241.0,0.044366]
[1727919323066,0.02660112,61242.0,61241.0,0.044366]
[1727919323317,0.18988712,61242.0,61241.0,0.044366]
[1727919323527,0.36297249,61242.0,61241.0,0.021636]
[1727919327334,0.57234174,61242.0,61241.0,0.021636]
[1727919327569,0.46297249,61242.0,61241.0,0.021636]
[1727919328305,0.46197249,61242.0,61241.0,0.011636]
[1727919328559,0.46197249,61242.0,61241.0,0.014636]
[1727919328789,0.43637137,61242.0,61241.0,0.014636]
[1727919329039,0.43637137,61242.0,61241.0,0.011636]
[1727919329280,0.43537137,61242.0,61241.0,0.001636]
[1727919329532,0.43537137,61242.0,61241.0,0.003636]
[1727919329803,0.43537137,61242.0,61241.0,0.001636]
[1727919330061,0.55198051,61242.0,61241.0,0.001636]
[1727919330310,0.56098051,61242.0,61241.0,0.001636]
[1727919330557,0.56298051,61242.0,61241.0,0.001636]
[1727919330800,0.56798051,61242.0,61241.0,0.001636]
[1727919331058,0.55598051,61242.0,61241.0,0.001636]
[1727919331297,0.61367137,61242.0,61241.0,0.001636]
[1727919331537,0.265294,61239.0,61238.0,0.001636]
[1727919331751,0.263294,61239.0,61238.0,0.001636]
[1727919331980,0.3904651,61239.0,61238.0,0.001636]
[1727919332197,0.39722172,61239.0,61238.0,0.001636]
[1727919332407,0.39922172,61239.0,61238.0,0.001636]
[1727919332834,0.40022172,61239.0,61238.0,0.001636]
[1727919333047,0.42582805,61239.0,61238.0,0.001636]
[1727919333489,0.42782805,61239.0,61238.0,0.001636]
[1727919334812,0.002,61236.0,61235.0,0.000636]
[1727919335033,0.53708737,61236.0,61235.0,0.000636]
[1727919335257,0.54378989,61236.0,61235.0,0.000636]
[1727919335939,0.54378989,61236.0,61224.0,0.001636]
[1727919335940,0.43541137,61227.0,61224.0,0.001636]
[1727919336177,0.43741137,61227.0,61224.0,0.001636]
[1727919336390,0.44211501,61227.0,61224.0,0.001636]
[1727919337365,0.44311501,61227.0,61224.0,0.001636]
[1727919337570,0.44211501,61227.0,61224.0,0.001636]
[1727919337782,0.58451731,61227.0,61224.0,0.001636]
[1727919338207,0.44211501,61227.0,61224.0,0.001636]
[1727919338874,0.44511501,61227.0,61224.0,0.001636]
[1727919339515,0.44211501,61227.0,61224.0,0.32530014]
[1727919339748,0.44211501,61227.0,61224.0,0.080136]
[1727919340661,0.44211501,61227.0,61224.0,0.001636]
[1727919341111,0.53421501,61227.0,61224.0,0.001636]
[1727919341331,0.53421501,61227.0,61226.0,0.002636]
[1727919341559,0.69614822,61227.0,61226.0,0.002636]
[1727919342256,0.69614822,61227.0,61226.0,0.001636]
[1727919342721,0.69714822,61227.0,61226.0,0.001636]
[1727919343927,0.163331,61225.0,61224.0,0.001636]
[1727919344075,0.263331,61225.0,61224.0,0.001636]
[1727919344315,0.42651771,61225.0,61224.0,0.001636]
[1727919344534,0.43518654,61225.0,61224.0,0.001636]
[1727919344971,0.43318654,61225.0,61224.0,0.001636]
[1727919345940,0.44218654,61225.0,61224.0,0.001636]
[1727919346467,0.27899983,61225.0,61224.0,0.001636]
[1727919346682,0.28899983,61225.0,61224.0,0.002636]
[1727919349053,0.26999983,61225.0,61224.0,0.001636]
[1727919349291,0.26999983,61225.0,61224.0,0.002636]
[1727919349292,0.27999983,61225.0,61224.0,0.002636]
[1727919349512,0.28899983,61225.0,61224.0,0.002636]
[1727919349782,0.42330375,61225.0,61224.0,0.001636]
[1727919350000,0.43230375,61225.0,61224.0,0.002636]
[1727919350781,0.42330375,61225.0,61224.0,0.002636]
[1727919351219,0.43130375,61225.0,61224.0,0.002636]
[1727919351869,0.45691612,61225.0,61224.0,0.002636]
[1727919352905,0.3126122,61225.0,61224.0,0.002636]
[1727919353110,0.28699983,61225.0,61224.0,0.084336]
[1727919353526,0.28699983,61225.0,61224.0,0.002636]
[1727919354164,0.27899983,61225.0,61224.0,0.002636]
[1727919354587,0.28699983,61225.0,61224.0,0.002636]
[1727919354997,0.27899983,61225.0,61224.0,0.002636]
[1727919355216,0.27899983,61225.0,61224.0,0.001636]
[1727919355217,0.41310375,61225.0,61224.0,0.001636]
[1727919355448,0.27299983,61225.0,61224.0,0.001636]
[1727919356067,0.30260981,61225.0,61224.0,0.001636]
[1727919357342,0.27699983,61225.0,61224.0,0.000636]
[1727919358344,0.263334,61224.0,61223.0,0.001472]
[1727919358806,0.263334,61224.0,61223.0,0.001372]
[1727919359106,0.2700287,61224.0,61223.0,0.001272]
[1727919359313,0.2700287,61224.0,61223.0,0.000472]
[1727919359756,0.2730287,61224.0,61223.0,0.000272]
[1727919359975,0.163347,61219.0,61218.0,0.075672]
[1727919360235,0.33543237,61219.0,61218.0,0.075572]
[1727919360435,0.34163468,61219.0,61218.0,0.075572]
[1727919360615,0.34163468,61219.0,61218.0,0.075272]
[1727919360871,0.34163468,61219.0,61218.0,0.074872]
[1727919361137,0.34163468,61219.0,61218.0,0.074672]
[1727919361371,0.34163468,61219.0,61218.0,0.077572]
[1727919361658,0.34163468,61219.0,61218.0,0.077272]
[1727919361900,0.34163468,61219.0,61218.0,0.079272]
[1727919362137,0.16954931,61219.0,61218.0,0.079172]
[1727919362377,0.16954931,61219.0,61218.0,0.179072]
[1727919362378,0.00620231,61219.0,61218.0,0.179072]
[1727919362630,0.16954931,61219.0,61218.0,0.179072]
[1727919362892,0.1695487,61219.0,61218.0,0.211802]
[1727919363155,0.1695487,61219.0,61218.0,0.2494819]
[1727919363615,0.1695487,61219.0,61218.0,0.2464819]
[1727919363793,0.1695487,61219.0,61218.0,0.2534819]
[1727919363794,0.1705487,61219.0,61218.0,0.2534819]
[1727919364259,0.1695487,61219.0,61218.0,0.2464819]
[1727919364512,0.1695487,61219.0,61218.0,0.2444819]
[1727919365019,0.1705487,61219.0,61218.0,0.2544819]
[1727919365219,0.1695487,61219.0,61218.0,0.206802]
[1727919365427,0.1705487,61219.0,61218.0,0.213802]
[1727919365637,0.1715487,61219.0,61218.0,0.224802]
[1727919368191,0.0082017,61219.0,61218.0,0.2474458]
[1727919368406,0.1715487,61219.0,61218.0,0.2474458]
[1727919368820,0.0082017,61219.0,61218.0,0.2474458]
[1727919369304,0.0082017,61219.0,61218.0,0.4107958]
[1727919369305,0.002,61219.0,61218.0,0.4107958]
[1727919370135,0.002,61219.0,61218.0,0.2474458]
[1727919370346,0.165347,61219.0,61218.0,0.224802]
[1727919370761,0.17155196,61219.0,61218.0,0.224802]
[1727919373060,0.00820496,61219.0,61218.0,0.22562]
[1727919373266,0.00984096,61219.0,61218.0,0.32186971]
[1727919375804,0.17318796,61219.0,61218.0,0.32186971]
[1727919376225,0.00984096,61219.0,61218.0,0.32186971]
[1727919376863,0.03544696,61219.0,61218.0,0.32186971]
[1727919377980,0.00984096,61219.0,61218.0,0.32186971]
[1727919378203,0.00984096,61219.0,61218.0,0.84675867]
[1727919378431,0.001636,61226.0,61225.0,0.56694637]
[1727919378642,0.001636,61226.0,61225.0,0.87111079]
[1727919378895,0.001636,61242.0,61235.0,0.03273]
[1727919379131,0.24516414,61238.0,61237.0,0.03273]
[1727919379350,0.001636,61242.0,61237.0,0.03273]
[1727919379594,0.001636,61242.0,61239.0,0.03273]
[1727919379810,0.00655025,61241.0,61239.0,0.03273]
[1727919380684,0.00655025,61241.0,61239.0,0.203024]
[1727919380923,0.00655025,61241.0,61240.0,0.163291]
[1727919381134,0.00655025,61241.0,61239.0,0.03973]
[1727919381135,0.0321493,61241.0,61239.0,0.03973]
[1727919381348,0.0321493,61241.0,61240.0,0.0341153]
[1727919382279,0.1954383,61241.0,61240.0,0.0341153]
[1727919382714,0.0321493,61241.0,61240.0,0.0341153]
[1727919382956,0.0331493,61241.0,61240.0,0.0411153]
[1727919383480,0.0321493,61241.0,61240.0,0.0411153]
[1727919383723,0.0331493,61241.0,61240.0,0.2932063]
[1727919383974,0.001,61241.0,61240.0,0.39167535]
[1727919384219,0.001,61241.0,61240.0,0.3886063]
[1727919384557,0.001,61241.0,61240.0,0.4213363]
[1727919385278,0.001636,61242.0,61241.0,0.163289]
[1727919385550,0.001636,61242.0,61241.0,0.39400203]
[1727919385796,0.001636,61242.0,61241.0,0.39073668]
[1727919386355,0.001636,61242.0,61241.0,0.68562205]
[1727919386609,0.002636,61242.0,61241.0,0.86280876]
[1727919387617,0.002636,61242.0,61241.0,0.87680876]
[1727919387839,0.02559478,61246.0,61245.0,0.219008]
[1727919388101,0.02559478,61246.0,61245.0,0.73754503]
[1727919388352,0.000819,61249.0,61248.0,0.321]
[1727919388592,0.000819,61249.0,61248.0,0.66345126]
[1727919388859,0.000819,61249.0,61248.0,0.66018671]
[1727919389111,0.000819,61249.0,61248.0,0.78221735]
[1727919390851,0.000819,61249.0,61248.0,0.79621735]
[1727919391105,0.000819,61249.0,61248.0,0.79821735]
[1727919391584,0.000819,61249.0,61248.0,0.81221735]
[1727919392068,0.000819,61249.0,61248.0,0.81021735]
[1727919392800,0.000819,61249.0,61248.0,0.79621735]
[1727919393039,0.000819,61249.0,61248.0,0.81021735]
[1727919393549,0.000819,61249.0,61248.0,0.79621735]
[1727919393791,0.000819,61249.0,61248.0,0.81021735]
[1727919394266,0.000819,61249.0,61248.0,0.78221735]
[1727919394512,0.000819,61249.0,61248.0,0.79621735]
[1727919394825,0.000819,61249.0,61248.0,0.36076064]
[1727919395031,0.0094115,61249.0,61248.0,0.36076064]
[1727919395285,0.0094115,61249.0,61248.0,0.22473]
[1727919395510,0.0094115,61249.0,61248.0,0.402]
[1727919395995,0.000819,61249.0,61248.0,0.22473]
[1727919396249,0.164086,61249.0,61248.0,0.1963871]
[1727919396501,0.17267088,61249.0,61248.0,0.13693]
[1727919396735,0.17267088,61249.0,61248.0,0.04473]
[1727919396974,0.17267088,61249.0,61248.0,0.04098941]
[1727919397232,0.17267088,61249.0,61248.0,0.026]
[1727919397463,0.17267088,61249.0,61248.0,0.012]
[1727919397695,0.19826669,61249.0,61248.0,0.013]
[1727919397931,0.19826669,61249.0,61248.0,0.05081641]
[1727919398407,0.19826669,61249.0,61248.0,0.03881641]
[1727919398886,0.19826669,61249.0,61248.0,0.05081641]
[1727919402442,0.19826669,61249.0,61248.0,0.025]
[1727919402665,0.37035206,61249.0,61248.0,0.025]
[1727919403501,0.19826669,61249.0,61248.0,0.025]
[1727919403731,0.19826669,61249.0,61248.0,0.012]
[1727919404157,0.163281,61244.0,61243.0,0.24516414]
[1727919404369,0.163281,61244.0,61243.0,0.26976235]
[1727919404635,0.17181064,61244.0,61243.0,0.02459821]
[1727919404871,0.163283,61243.0,61242.0,0.000818]
[1727919405319,0.17178091,61243.0,61242.0,0.000818]
[1727919406170,0.17178091,61243.0,61242.0,0.041548]
[1727919407008,0.17178091,61243.0,61242.0,0.050548]
[1727919408397,0.17178091,61243.0,61242.0,0.017818]
[1727919409329,0.17178091,61243.0,61242.0,0.050548]
[1727919409551,0.17178091,61243.0,61242.0,0.017818]
[1727919410230,0.17341691,61243.0,61242.0,0.03838921]
[1727919410656,0.17341691,61243.0,61242.0,0.04538921]
[1727919410866,0.17341691,61243.0,61242.0,0.03838921]
[1727919411078,0.17341691,61243.0,61242.0,0.03038921]
[1727919411304,0.17341691,61243.0,61242.0,0.04038921]
[1727919411535,0.17341691,61243.0,61242.0,0.03638921]
[1727919411972,0.19901714,61243.0,61242.0,0.03638921]
[1727919412859,0.19901714,61243.0,61242.0,0.04338921]
[1727919418548,0.17341691,61243.0,61242.0,0.04338921]
[1727919421078,0.17341691,61243.0,61242.0,0.013818]
[1727919421330,0.27341691,61243.0,61242.0,0.013818]
[1727919422444,0.17341691,61243.0,61242.0,0.013818]
[1727919423109,0.19901836,61243.0,61242.0,0.013818]
[1727919424722,0.17341691,61243.0,61242.0,0.013818]
[1727919424933,0.17341691,61243.0,61242.0,0.0267928]
[1727919427645,0.19901691,61243.0,61242.0,0.0267928]
[1727919428783,0.17341691,61243.0,61242.0,0.0267928]
[1727919429027,0.17341691,61243.0,61242.0,0.55373096]
[1727919429028,0.01013391,61243.0,61242.0,0.55373096]
[1727919429265,0.001636,61243.0,61242.0,0.58519551]
[1727919429499,0.24516414,61257.0,61248.0,0.196]
[1727919429720,0.24516414,61257.0,61248.0,0.72417208]
[1727919430152,0.24516414,61264.0,61248.0,0.82417208]
[1727919430373,0.04885509,61278.0,61267.0,0.163219]
[1727919430374,0.163207,61272.0,61267.0,0.163219]
[1727919430639,0.326414,61272.0,61269.0,0.03273]
[1727919430851,0.01704436,61270.0,61269.0,0.03273]
[1727919431747,0.18025636,61270.0,61269.0,0.03273]
[1727919431974,0.18879945,61270.0,61269.0,0.03273]
[1727919432241,0.2058078,61270.0,61269.0,0.04273]
[1727919432690,0.2058078,61270.0,61269.0,0.01]
[1727919432915,0.2058078,61270.0,61269.0,0.022173]
[1727919433426,0.2058078,61270.0,61269.0,0.023173]
[1727919434024,0.2058078,61270.0,61269.0,0.022173]
[1727919434235,0.18022035,61270.0,61269.0,0.012173]
[1727919434494,0.18185635,61270.0,61269.0,0.022173]
[1727919434880,0.18185635,61270.0,61269.0,0.012173]
[1727919435261,0.18185635,61270.0,61269.0,0.016173]
[1727919435465,0.18185635,61270.0,61269.0,0.020173]
[1727919435688,0.18185635,61270.0,61269.0,0.004]
[1727919435893,0.18185635,61270.0,61269.0,0.008]
[1727919436984,0.163241,61259.0,61258.0,0.03273]
[1727919437181,0.163241,61259.0,61258.0,0.13133481]
[1727919437671,0.18883231,61259.0,61258.0,0.13133481]
[1727919438599,0.163241,61259.0,61258.0,0.13133481]
[1727919438828,0.1802671,61259.0,61258.0,0.13133481]
[1727919439294,0.1802671,61259.0,61258.0,0.14133481]
[1727919439550,0.1802671,61259.0,61258.0,0.13133481]
[1727919439810,0.1802671,61259.0,61258.0,0.15033481]
[1727919440323,0.1802671,61259.0,61258.0,0.14133481]
[1727919440594,0.1802671,61259.0,61258.0,0.019]
[1727919441392,0.1802671,61259.0,61258.0,0.01]
[1727919441644,0.30586306,61259.0,61258.0,0.01]
[1727919442348,0.35469567,61259.0,61258.0,0.01]
[1727919442577,0.35469567,61259.0,61250.0,0.24516414]
[1727919442578,0.163262,61251.0,61250.0,0.24516414]
[1727919443044,0.18024764,61251.0,61250.0,0.24516414]
[1727919443295,0.163265,61250.0,61247.0,0.03273]
[1727919443541,0.163265,61250.0,61249.0,0.03273]
[1727919444530,0.163274,61247.0,61244.0,0.00326528]
[1727919444796,0.163276,61246.0,61243.0,0.03273]
[1727919445034,0.163276,61246.0,61242.0,0.16689162]
[1727919445035,0.326539,61249.0,61245.0,0.03273]
[1727919445305,0.163277,61246.0,61245.0,0.03273]
[1727919446637,0.326514,61254.0,61245.0,0.04173]
[1727919446883,0.163271,61248.0,61247.0,0.03273]
[1727919447847,0.163271,61248.0,61245.0,0.04173]
[1727919448118,0.326535,61249.0,61245.0,0.04173]
[1727919448119,0.163274,61247.0,61245.0,0.04173]
[1727919448354,0.163274,61247.0,61246.0,0.069187]
[1727919450467,0.163274,61247.0,61246.0,0.081187]
[1727919450686,0.163274,61247.0,61246.0,0.089187]
[1727919451378,0.163274,61247.0,61246.0,0.081187]
[1727919451770,0.163274,61247.0,61246.0,0.069187]
[1727919452142,0.163274,61247.0,61246.0,0.078187]
[1727919452352,0.163274,61247.0,61246.0,0.069187]
[1727919452569,0.163274,61247.0,61246.0,0.092187]
[1727919452785,0.163274,61247.0,61246.0,0.080187]
[1727919453002,0.163274,61247.0,61246.0,0.069187]
[1727919453217,0.18030541,61247.0,61246.0,0.078187]
[1727919453492,0.18030541,61247.0,61246.0,0.086187]
[1727919453960,0.18030541,61247.0,61246.0,0.078187]
[1727919454459,0.18030541,61247.0,61246.0,0.089187]
[1727919454679,0.18030541,61247.0,61246.0,0.080187]
[1727919455117,0.18030541,61247.0,61246.0,0.092187]
[1727919455118,0.01703141,61247.0,61246.0,0.092187]
[1727919455351,0.18030441,61247.0,61246.0,0.080187]
[1727919455565,0.163273,61247.0,61246.0,0.090187]
[1727919455776,0.18030441,61247.0,61246.0,0.079187]
[1727919456005,0.01703141,61247.0,61246.0,0.087187]
[1727919456419,0.326504,61255.0,61246.0,0.077187]
[1727919456634,0.163267,61249.0,61248.0,0.03273]
[1727919457051,0.163263,61251.0,61247.0,0.0483863]
[1727919457287,0.326526,61251.0,61247.0,0.0483863]
[1727919457494,0.163266,61250.0,61248.0,0.06605441]
[1727919457923,0.163267,61249.0,61248.0,0.06605441]
[1727919458140,0.163267,61249.0,61248.0,0.09878441]
[1727919458850,0.163267,61249.0,61248.0,0.10778441]
[1727919459055,0.163267,61249.0,61248.0,0.03273]
[1727919459282,0.163267,61249.0,61248.0,0.04373]
[1727919459508,0.163267,61249.0,61248.0,0.03273]
[1727919459917,0.163267,61249.0,61248.0,0.04473]
[1727919460587,0.163267,61249.0,61248.0,0.05573]
[1727919460799,0.163267,61249.0,61248.0,0.0864546]
[1727919461924,0.18886323,61249.0,61243.0,0.57172714]
[1727919462139,0.18886323,61249.0,61246.0,0.03273]
[1727919462351,0.18886323,61249.0,61248.0,0.03273]
[1727919464096,0.163267,61249.0,61248.0,0.03273]
[1727919464513,0.163267,61249.0,61248.0,0.04273]
[1727919465214,0.164267,61249.0,61248.0,0.05273]
[1727919465434,0.164267,61249.0,61248.0,0.09019677]
[1727919465655,0.163267,61249.0,61248.0,0.08019677]
[1727919465861,0.164267,61249.0,61248.0,0.08519677]
[1727919468247,0.18135291,61249.0,61248.0,0.08519677]
[1727919469948,0.01808591,61249.0,61248.0,0.16659677]
[1727919470161,0.18135291,61249.0,61248.0,0.16659677]
[1727919471263,0.18298891,61249.0,61248.0,0.16659677]
[1727919472315,0.01972191,61249.0,61248.0,0.16659677]
[1727919472572,0.18298891,61249.0,61248.0,0.16659677]
[1727919473000,0.20858516,61249.0,61248.0,0.16659677]
[1727919475153,0.04531816,61249.0,61248.0,0.16659677]
[1727919475392,0.20858516,61249.0,61248.0,0.16659677]
[1727919475636,0.04531816,61249.0,61248.0,0.16659677]
[1727919477029,0.01972191,61249.0,61248.0,0.16659677]
[1727919478851,0.18298891,61249.0,61248.0,0.16659677]
[1727919480406,0.20858517,61249.0,61248.0,0.16659677]
[1727919481472,0.20858517,61249.0,61248.0,0.015]
[1727919481697,0.29569172,61249.0,61248.0,0.015]
[1727919481915,0.18298891,61249.0,61248.0,0.04773]
[1727919482847,0.01972191,61249.0,61248.0,0.21943]
[1727919483068,0.01972191,61249.0,61248.0,0.49042781]
[1727919483284,0.01972191,61249.0,61248.0,0.52065907]
[1727919483503,0.002636,61249.0,61248.0,0.52065907]
[1727919484180,0.002636,61249.0,61248.0,0.60313062]
[1727919484399,0.001636,61249.0,61248.0,0.23328903]
[1727919484626,0.002636,61249.0,61248.0,0.22843]
[1727919484840,0.01871674,61249.0,61248.0,0.21443]
[1727919485270,0.01971674,61249.0,61248.0,0.4194704]
[1727919485475,0.02071674,61249.0,61248.0,0.4284704]
[1727919485907,0.01971674,61249.0,61248.0,0.4194704]
[1727919486327,0.02923078,61249.0,61248.0,0.4334704]
[1727919486563,0.02823078,61249.0,61248.0,0.4194704]
[1727919487050,0.02823078,61249.0,61248.0,0.4334704]
[1727919487255,0.02823078,61249.0,61248.0,0.4194704]
[1727919487492,0.02823078,61249.0,61248.0,0.4334704]
[1727919487748,0.02823078,61249.0,61248.0,0.6404363]
[1727919487749,0.002636,61249.0,61248.0,0.6404363]
[1727919487963,0.002636,61249.0,61248.0,0.81923906]
[1727919488165,0.002636,61249.0,61248.0,0.77047411]
[1727919488369,0.002636,61249.0,61248.0,0.867888]
[1727919488573,0.002636,61249.0,61248.0,0.77047411]
[1727919488780,0.002636,61249.0,61248.0,0.86789586]
[1727919489390,0.002636,61249.0,61248.0,0.77047411]
[1727919490026,0.001636,61251.0,61250.0,0.03473]
[1727919490243,0.001636,61251.0,61250.0,0.87812196]
[1727919490451,0.001636,61251.0,61250.0,0.87572097]
[1727919490659,0.001636,61251.0,61250.0,0.87562941]
[1727919490870,0.001636,61251.0,61250.0,0.95360588]
[1727919491087,0.001636,61251.0,61250.0,0.91839981]
[1727919491296,0.001636,61251.0,61250.0,1.01564568]
[1727919491500,0.001636,61251.0,61250.0,0.94639981]
[1727919491916,0.001636,61251.0,61250.0,1.04364568]
[1727919492141,0.001636,61251.0,61250.0,0.93239981]
[1727919492356,0.24516414,61269.0,61257.0,0.67559826]
[1727919492564,0.24516414,61269.0,61257.0,1.06058458]
[1727919492772,0.24516414,61269.0,61257.0,0.98771994]
[1727919493426,0.24516414,61269.0,61266.0,0.002]
[1727919493647,0.24516414,61269.0,61268.0,0.56536926]
[1727919493859,0.000818,61274.0,61269.0,0.03273]
[1727919493860,0.163207,61272.0,61269.0,0.03273]
[1727919494068,0.000818,61274.0,61269.0,0.03273]
[1727919494482,0.163206,61272.0,61269.0,0.03273]
[1727919494894,0.000818,61274.0,61269.0,0.195944]
[1727919495365,0.000818,61274.0,61269.0,0.38213071]